[Event "MČR juniorů a juniorek v rapid šachu 2024"]
[Site "Hotel Fit Fun, Harrachov, Czech Republic"]
[Date "2024.09.22"]
[Round "8.12"]
[White "Ret Adam Josef"]
[Black "Stary Simon"]
[Result "1-0"]
[TimeControl "20+5"]
[WhiteFideId "384240"]
[BlackFideId "23734353"]
[WhiteElo "2038"]
[BlackElo "1866"]

1. c4 {[%clk 00:20:09]} Nf6 {[%clk 00:20:07]} {[%emt 00:00:04]} 2. g3 {[%clk
00:20:13]} g6 {[%clk 00:20:10]} {[%emt 00:00:01]} 3. Bg2 {[%clk 00:20:17]} Bg7
{[%clk 00:20:15]} 4. Nf3 {[%clk 00:20:21]} O-O {[%clk 00:20:18]} {[%emt
00:00:03]} 5. O-O {[%clk 00:20:25]} {[%emt 00:00:02]} d6 {[%clk 00:20:21]}
{[%emt 00:00:02]} 6. d4 {[%clk 00:20:28]} {[%emt 00:00:02]} Nbd7 {[%clk
00:20:24]} {[%emt 00:00:02]} 7. Nc3 {[%clk 00:20:32]} e5 {[%clk 00:20:26]}
{[%emt 00:00:03]} 8. e3 {[%clk 00:20:36]} c6 {[%clk 00:20:30]} {[%emt
00:00:02]} 9. b3 {[%clk 00:20:40]} {[%emt 00:00:01]} a5 {[%clk 00:20:32]}
{[%emt 00:00:03]} 10. a4 {[%clk 00:20:43]} {[%emt 00:00:02]} Re8 {[%clk
00:20:05]} {[%emt 00:00:31]} 11. Ba3 {[%clk 00:20:45]} {[%emt 00:00:03]} Nf8
{[%clk 00:19:15]} {[%emt 00:00:56]} 12. Rc1 {[%clk 00:18:35]} {[%emt 00:02:15]}
Nh5 {[%clk 00:17:52]} {[%emt 00:01:27]} 13. dxe5 {[%clk 00:18:12]} {[%emt
00:00:28]} dxe5 {[%clk 00:17:55]} {[%emt 00:00:03]} 14. Ne4 {[%clk 00:17:47]}
{[%emt 00:00:29]} Qxd1 {[%clk 00:16:43]} {[%emt 00:01:18]} 15. Rfxd1 {[%clk
00:17:48]} {[%emt 00:00:04]} Bg4 {[%clk 00:15:36]} {[%emt 00:01:12]} 16. h3
{[%clk 00:16:41]} {[%emt 00:01:11]} Bxf3 {[%clk 00:14:55]} {[%emt 00:00:46]} 17.
Bxf3 {[%clk 00:16:44]} {[%emt 00:00:01]} Ne6 {[%clk 00:13:41]} {[%emt
00:01:19]} 18. Nd6 {[%clk 00:16:12]} {[%emt 00:00:38]} Red8 {[%clk 00:13:45]}
{[%emt 00:00:01]} 19. Nxb7 {[%clk 00:15:51]} {[%emt 00:00:25]} Rdb8 {[%clk
00:12:41]} {[%emt 00:01:10]} 20. Bxc6 {[%clk 00:15:32]} {[%emt 00:00:24]} Ra6
{[%clk 00:12:34]} {[%emt 00:00:12]} 21. Bb5 {[%clk 00:15:17]} {[%emt 00:00:20]}
Rxb7 {[%clk 00:12:15]} {[%emt 00:00:25]} 22. Bxa6 {[%clk 00:15:15]} {[%emt
00:00:07]} Rxb3 {[%clk 00:12:19]} 23. Bd6 {[%clk 00:15:06]} {[%emt 00:00:13]}
Ng5 {[%clk 00:12:04]} {[%emt 00:00:22]} 24. c5 {[%clk 00:14:16]} {[%emt
00:00:55]} Rb2 {[%clk 00:11:44]} {[%emt 00:00:25]} 25. Kg2 {[%clk 00:13:11]}
{[%emt 00:01:10]} Ne4 {[%clk 00:11:32]} {[%emt 00:00:17]} 26. c6 {[%clk
00:10:44]} {[%emt 00:02:32]} Rxf2+ {[%clk 00:11:18]} {[%emt 00:00:18]} 27. Kg1
{[%clk 00:10:40]} {[%emt 00:00:08]} Rf3 {[%clk 00:03:13]} {[%emt 00:08:10]} 28.
c7 {[%clk 00:10:33]} {[%emt 00:00:13]} Rxg3+ {[%clk 00:03:15]} {[%emt
00:00:03]} 29. Kh2 {[%clk 00:10:26]} {[%emt 00:00:11]} 1-0



[ePGN "0.1;DGT LiveChess/2.2.6"]

[Event "MČR juniorů a juniorek v rapid šachu 2024"]
[Site "Hotel Fit Fun, Harrachov, Czech Republic"]
[Date "2024.09.22"]
[Round "8.13"]
[White "Vyslysel Petr"]
[Black "Juhanak Daniel"]
[Result "0-1"]
[TimeControl "20+5"]
[WhiteFideId "23730277"]
[BlackFideId "23718765"]
[WhiteElo "1678"]
[BlackElo "1982"]

1. d4 {[%clk 00:20:08]} d5 {[%clk 00:20:08]} {[%emt 00:00:03]} 2. c4 {[%clk
00:20:11]} {[%emt 00:00:02]} e6 {[%clk 00:20:01]} {[%emt 00:00:12]} 3. Nc3
{[%clk 00:20:14]} {[%emt 00:00:02]} Nf6 {[%clk 00:20:05]} {[%emt 00:00:01]} 4.
Bg5 {[%clk 00:20:17]} {[%emt 00:00:02]} Bb4 {[%clk 00:20:03]} {[%emt 00:00:07]}
5. Bxf6 {[%clk 00:20:19]} {[%emt 00:00:03]} Qxf6 {[%clk 00:20:06]} {[%emt
00:00:02]} 6. e3 {[%clk 00:20:22]} {[%emt 00:00:03]} O-O {[%clk 00:19:44]}
{[%emt 00:00:27]} 7. Nf3 {[%clk 00:20:25]} {[%emt 00:00:02]} c5 {[%clk
00:18:18]} {[%emt 00:01:31]} 8. Rc1 {[%clk 00:19:13]} {[%emt 00:01:17]} Nc6
{[%clk 00:17:20]} {[%emt 00:01:03]} 9. dxc5 {[%clk 00:18:35]} {[%emt 00:00:44]}
dxc4 {[%clk 00:17:01]} {[%emt 00:00:24]} 10. Bxc4 {[%clk 00:18:11]} {[%emt
00:00:29]} Bxc5 {[%clk 00:14:45]} {[%emt 00:02:21]} 11. O-O {[%clk 00:18:10]}
{[%emt 00:00:06]} Bb6 {[%clk 00:14:03]} {[%emt 00:00:47]} 12. Bd3 {[%clk
00:17:35]} {[%emt 00:00:39]} Ne5 {[%clk 00:13:26]} {[%emt 00:00:42]} 13. Be4
{[%clk 00:16:00]} {[%emt 00:01:40]} Rd8 {[%clk 00:11:51]} {[%emt 00:01:39]} 14.
Qc2 {[%clk 00:15:56]} {[%emt 00:00:10]} Nxf3+ {[%clk 00:11:12]} {[%emt
00:00:43]} 15. Bxf3 {[%clk 00:15:58]} {[%emt 00:00:03]} Rb8 {[%clk 00:06:48]}
{[%emt 00:04:30]} 16. Ne4 {[%clk 00:14:07]} {[%emt 00:01:55]} Qe7 {[%clk
00:06:13]} {[%emt 00:00:41]} 17. Nc5 {[%clk 00:14:07]} {[%emt 00:00:05]} e5
{[%clk 00:04:47]} {[%emt 00:01:31]} 18. b4 {[%clk 00:12:49]} {[%emt 00:01:23]}
Be6 {[%clk 00:03:45]} {[%emt 00:01:07]} 19. a3 {[%clk 00:11:15]} {[%emt
00:01:39]} Bd5 {[%clk 00:03:11]} {[%emt 00:00:39]} 20. e4 {[%clk 00:10:40]}
{[%emt 00:00:40]} Bc6 {[%clk 00:03:00]} {[%emt 00:00:16]} 21. Be2 {[%clk
00:06:35]} {[%emt 00:04:10]} Rd4 {[%clk 00:02:31]} {[%emt 00:00:34]} 22. Bf3
{[%clk 00:03:46]} {[%emt 00:02:54]} Rbd8 {[%clk 00:02:18]} {[%emt 00:00:17]} 23.
Nb3 {[%clk 00:03:49]} {[%emt 00:00:02]} Ba4 {[%clk 00:02:11]} {[%emt 00:00:12]}
24. Qc3 {[%clk 00:03:19]} {[%emt 00:00:35]} Rd3 {[%emt 00:00:13]} 0-1



[ePGN "0.1;DGT LiveChess/2.2.6"]

[Event "MČR juniorů a juniorek v rapid šachu 2024"]
[Site "Hotel Fit Fun, Harrachov, Czech Republic"]
[Date "2024.09.22"]
[Round "8.14"]
[White "Urbansky Stepan"]
[Black "Bezdek Tomas"]
[Result "1-0"]
[TimeControl "20+5"]
[WhiteFideId "23761741"]
[BlackFideId "23733551"]
[WhiteElo "1837"]
[BlackElo "1973"]

1. e4 {[%clk 00:20:07]} {[%emt 00:00:02]} e6 {[%clk 00:20:09]} {[%emt
00:00:02]} 2. d4 {[%clk 00:20:10]} {[%emt 00:00:02]} d5 {[%clk 00:20:13]} 3.
Nd2 {[%clk 00:20:11]} {[%emt 00:00:05]} c5 {[%clk 00:20:17]} {[%emt 00:00:01]}
4. exd5 {[%clk 00:20:11]} {[%emt 00:00:04]} Qxd5 {[%clk 00:20:21]} {[%emt
00:00:02]} 5. Ngf3 {[%clk 00:20:13]} {[%emt 00:00:02]} cxd4 {[%clk 00:20:24]}
{[%emt 00:00:02]} 6. Bc4 {[%clk 00:20:16]} {[%emt 00:00:02]} Qd6 {[%clk
00:20:28]} 7. O-O {[%clk 00:20:10]} {[%emt 00:00:11]} Nf6 {[%clk 00:20:32]}
{[%emt 00:00:02]} 8. Nb3 {[%clk 00:20:00]} {[%emt 00:00:14]} Nc6 {[%clk
00:20:35]} {[%emt 00:00:02]} 9. Nbxd4 {[%clk 00:19:46]} {[%emt 00:00:19]} Nxd4
{[%clk 00:20:39]} {[%emt 00:00:02]} 10. Qxd4 {[%clk 00:19:44]} {[%emt
00:00:07]} Qxd4 {[%clk 00:20:42]} {[%emt 00:00:02]} 11. Nxd4 {[%clk 00:19:47]}
{[%emt 00:00:02]} Bc5 {[%clk 00:20:46]} 12. Nb5 {[%clk 00:18:46]} {[%emt
00:01:06]} O-O {[%clk 00:19:57]} {[%emt 00:00:54]} 13. Bf4 {[%clk 00:18:06]}
{[%emt 00:00:45]} Bd7 {[%clk 00:19:40]} {[%emt 00:00:22]} 14. Rad1 {[%clk
00:16:02]} {[%emt 00:02:09]} Rac8 {[%clk 00:18:44]} {[%emt 00:01:01]} 15. b3
{[%clk 00:14:16]} {[%emt 00:01:52]} Nd5 {[%clk 00:15:20]} {[%emt 00:03:28]} 16.
Bd6 {[%clk 00:12:56]} {[%emt 00:01:25]} Rfd8 {[%clk 00:08:49]} {[%emt
00:06:36]} 17. Bxc5 {[%clk 00:07:25]} {[%emt 00:05:37]} Rxc5 {[%clk 00:08:42]}
{[%emt 00:00:12]} 18. Nd6 {[%clk 00:07:04]} {[%emt 00:00:26]} Bc6 {[%clk
00:07:56]} {[%emt 00:00:51]} 19. Ne4 {[%clk 00:07:05]} {[%emt 00:00:04]} Ra5
{[%clk 00:07:58]} {[%emt 00:00:03]} 20. a4 {[%clk 00:05:41]} {[%emt 00:01:29]}
Rb8 {[%clk 00:06:40]} {[%emt 00:01:22]} 21. Nd6 {[%clk 00:04:03]} {[%emt
00:01:44]} Nf4 {[%clk 00:05:37]} {[%emt 00:01:07]} 22. Bb5 {[%clk 00:02:37]}
{[%emt 00:01:32]} Bxg2 {[%clk 00:03:15]} {[%emt 00:02:27]} 23. Rfe1 {[%clk
00:02:35]} {[%emt 00:00:07]} Bf3 {[%clk 00:02:12]} {[%emt 00:01:08]} 24. Rb1
{[%clk 00:00:35]} {[%emt 00:02:04]} Rd8 {[%clk 00:01:05]} {[%emt 00:01:13]} 25.
Nc4 {[%clk 00:00:36]} {[%emt 00:00:04]} Rd4 {[%emt 00:01:12]} 26. Nxa5 {[%emt
00:00:05]} Nh3+ 27. Kf1 {[%emt 00:00:02]} Nf4 {[%clk 00:20:05]} {[%emt
00:00:10]} 28. Nc4 1-0



[ePGN "0.1;DGT LiveChess/2.2.6"]

[Event "MČR juniorů a juniorek v rapid šachu 2024"]
[Site "Hotel Fit Fun, Harrachov, Czech Republic"]
[Date "2024.09.22"]
[Round "8.15"]
[White "Stejskal Michal"]
[Black "Dobsa Emma"]
[Result "1-0"]
[TimeControl "20+5"]
[WhiteFideId "398195"]
[BlackFideId "23709391"]
[WhiteElo "1926"]
[BlackElo "1830"]

1. e4 {[%clk 00:20:07]} {[%emt 00:00:02]} e5 {[%clk 00:20:09]} 2. Nf3 {[%emt
01:12:34]} Nc6 3. c3 {[%clk 00:20:14]} d5 {[%clk 00:20:17]} {[%emt 00:00:02]} 4.
Qa4 {[%clk 00:20:17]} {[%emt 00:00:02]} Qd6 {[%clk 00:20:19]} {[%emt 00:00:03]}
5. exd5 {[%clk 00:19:49]} {[%emt 00:00:34]} Qxd5 {[%clk 00:20:23]} {[%emt
00:00:01]} 6. Bb5 {[%clk 00:19:36]} {[%emt 00:00:18]} Bd7 {[%clk 00:19:46]}
{[%emt 00:00:42]} 7. O-O {[%clk 00:19:28]} {[%emt 00:00:12]} a6 {[%clk
00:19:26]} {[%emt 00:00:26]} 8. Bxc6 {[%clk 00:18:52]} {[%emt 00:00:41]} Bxc6
{[%clk 00:19:29]} {[%emt 00:00:02]} 9. Qg4 {[%clk 00:18:55]} {[%emt 00:00:01]}
Nf6 {[%clk 00:18:31]} {[%emt 00:01:03]} 10. Qg3 {[%clk 00:18:57]} {[%emt
00:00:03]} e4 {[%clk 00:16:49]} {[%emt 00:01:48]} 11. Qe5+ {[%clk 00:18:12]}
{[%emt 00:00:49]} Be7 {[%clk 00:15:46]} {[%emt 00:01:08]} 12. Re1 {[%clk
00:16:51]} {[%emt 00:01:27]} O-O {[%clk 00:15:12]} {[%emt 00:00:38]} 13. Qxd5
{[%clk 00:16:54]} {[%emt 00:00:02]} Bxd5 {[%clk 00:15:16]} {[%emt 00:00:02]} 14.
Nd4 {[%clk 00:16:58]} Bc5 {[%clk 00:14:11]} {[%emt 00:01:10]} 15. Nc2 {[%clk
00:16:31]} {[%emt 00:00:31]} Rfe8 {[%clk 00:13:09]} {[%emt 00:01:07]} 16. Ne3
{[%clk 00:16:34]} {[%emt 00:00:02]} Bc6 {[%clk 00:13:11]} {[%emt 00:00:03]} 17.
b4 {[%clk 00:16:25]} {[%emt 00:00:14]} Ba7 {[%clk 00:13:10]} {[%emt 00:00:06]}
18. Bb2 {[%clk 00:15:49]} {[%emt 00:00:42]} Nh5 {[%clk 00:12:55]} {[%emt
00:00:20]} 19. g3 {[%clk 00:15:39]} {[%emt 00:00:14]} Nf6 {[%clk 00:12:59]}
{[%emt 00:00:02]} 20. c4 {[%clk 00:15:29]} {[%emt 00:00:15]} Nd7 {[%clk
00:12:51]} {[%emt 00:00:12]} 21. a4 {[%clk 00:15:09]} {[%emt 00:00:26]} Ne5
{[%clk 00:12:46]} {[%emt 00:00:10]} 22. Bxe5 {[%clk 00:15:08]} {[%emt
00:00:06]} Rxe5 {[%clk 00:12:50]} {[%emt 00:00:02]} 23. b5 {[%clk 00:15:11]}
{[%emt 00:00:02]} Bd4 {[%clk 00:11:16]} {[%emt 00:01:38]} 24. Nc3 {[%clk
00:14:56]} {[%emt 00:00:20]} axb5 {[%clk 00:11:15]} {[%emt 00:00:06]} 25. axb5
{[%clk 00:14:57]} {[%emt 00:00:04]} Rxa1 {[%clk 00:11:07]} {[%emt 00:00:14]} 26.
Rxa1 {[%clk 00:15:01]} {[%emt 00:00:01]} Bxc3 {[%clk 00:10:16]} {[%emt
00:00:56]} 27. dxc3 {[%clk 00:15:02]} {[%emt 00:00:04]} Bd7 {[%clk 00:10:18]}
{[%emt 00:00:03]} 28. Ra7 {[%clk 00:14:35]} {[%emt 00:00:31]} Bc8 {[%clk
00:10:21]} {[%emt 00:00:02]} 29. Ra8 {[%clk 00:14:38]} {[%emt 00:00:03]} Re8
{[%clk 00:10:24]} {[%emt 00:00:01]} 30. Nd5 {[%clk 00:14:42]} {[%emt 00:00:02]}
Bd7 {[%clk 00:09:08]} {[%emt 00:01:22]} 31. Rxe8+ {[%clk 00:13:39]} {[%emt
00:01:07]} Bxe8 {[%clk 00:09:11]} {[%emt 00:00:01]} 32. Nxc7 {[%clk 00:13:42]}
{[%emt 00:00:02]} Bd7 {[%clk 00:09:15]} {[%emt 00:00:01]} 33. c5 {[%clk
00:13:30]} {[%emt 00:00:17]} Kf8 {[%clk 00:09:13]} {[%emt 00:00:06]} 34. Kf1
{[%clk 00:13:02]} {[%emt 00:00:34]} Ke7 {[%clk 00:08:51]} {[%emt 00:00:27]} 35.
Ke2 {[%clk 00:12:18]} {[%emt 00:00:49]} Kd8 {[%clk 00:08:52]} {[%emt 00:00:04]}
36. b6 {[%clk 00:12:18]} {[%emt 00:00:06]} Ke7 {[%clk 00:08:16]} {[%emt
00:00:41]} 37. Ke3 {[%clk 00:12:18]} {[%emt 00:00:04]} f5 {[%clk 00:08:15]}
{[%emt 00:00:07]} 38. Kf4 {[%clk 00:12:05]} {[%emt 00:00:18]} g6 {[%clk
00:07:38]} {[%emt 00:00:41]} 39. Nd5+ {[%clk 00:11:58]} {[%emt 00:00:14]} Ke6
{[%clk 00:07:25]} {[%emt 00:00:17]} 40. Nb4 {[%clk 00:12:02]} {[%emt 00:00:01]}
h6 {[%clk 00:07:17]} {[%emt 00:00:13]} 41. h4 {[%clk 00:12:05]} {[%emt
00:00:01]} Bb5 {[%clk 00:07:01]} {[%emt 00:00:21]} 42. c6 {[%clk 00:11:47]}
{[%emt 00:00:23]} Bxc6 {[%clk 00:05:50]} {[%emt 00:01:16]} 43. Nxc6 {[%clk
00:11:50]} {[%emt 00:00:02]} Kd6 {[%clk 00:05:54]} {[%emt 00:00:02]} 44. Nd4
{[%clk 00:11:43]} {[%emt 00:00:12]} Kc5 {[%clk 00:05:56]} {[%emt 00:00:02]} 45.
h5 {[%emt 00:00:08]} gxh5 {[%clk 00:05:55]} 46. Nxf5 {[%clk 00:11:47]} {[%emt
00:00:03]} Kxb6 {[%clk 00:06:00]} {[%emt 00:00:01]} 47. Kxe4 {[%clk 00:11:50]}
{[%emt 00:00:02]} Kc5 {[%clk 00:06:03]} {[%emt 00:00:01]} 48. Ne3 {[%clk
00:11:50]} {[%emt 00:00:04]} Kd6 {[%clk 00:06:05]} {[%emt 00:00:03]} 49. f4
{[%clk 00:11:54]} {[%emt 00:00:02]} Ke6 {[%clk 00:06:09]} {[%emt 00:00:01]} 50.
f5+ {[%clk 00:11:57]} Kf6 {[%clk 00:06:14]} {[%emt 00:00:01]} 51. Kf4 {[%clk
00:12:01]} b5 {[%clk 00:06:13]} {[%emt 00:00:06]} 52. Nd5+ {[%clk 00:12:04]}
{[%emt 00:00:02]} Kf7 {[%clk 00:06:16]} {[%emt 00:00:02]} 53. Ke5 {[%clk
00:12:08]} {[%emt 00:00:01]} h4 {[%clk 00:06:17]} {[%emt 00:00:04]} 54. gxh4
{[%clk 00:12:11]} {[%emt 00:00:02]} h5 {[%clk 00:06:21]} 55. f6 {[%clk
00:12:14]} {[%emt 00:00:02]} Ke8 {[%clk 00:06:10]} {[%emt 00:00:16]} 56. Ke6
{[%clk 00:12:08]} {[%emt 00:00:11]} Kf8 {[%clk 00:06:14]} {[%emt 00:00:01]} 57.
f7 {[%clk 00:12:03]} {[%emt 00:00:10]} 1-0



[ePGN "0.1;DGT LiveChess/2.2.6"]

[Event "MČR juniorů a juniorek v rapid šachu 2024"]
[Site "Hotel Fit Fun, Harrachov, Czech Republic"]
[Date "2024.09.22"]
[Round "8.16"]
[White "Bartak Josef"]
[Black "Jun Robert"]
[Result "1-0"]
[TimeControl "20+5"]
[WhiteFideId "23712252"]
[BlackFideId "23709510"]
[WhiteElo "1902"]
[BlackElo "1681"]

1. e4 {[%clk 00:20:07]} {[%emt 00:00:02]} c5 {[%clk 00:20:09]} {[%emt
00:00:01]} 2. Nc3 {[%clk 00:20:11]} {[%emt 00:00:01]} d6 {[%clk 00:20:13]}
{[%emt 00:00:01]} 3. g3 {[%clk 00:20:14]} {[%emt 00:00:02]} e6 {[%clk
00:20:17]} 4. Bg2 {[%clk 00:20:18]} Nf6 {[%clk 00:20:18]} {[%emt 00:00:04]} 5.
d3 {[%clk 00:20:20]} {[%emt 00:00:03]} Be7 {[%clk 00:20:22]} {[%emt 00:00:02]}
6. f4 {[%clk 00:20:23]} {[%emt 00:00:02]} a6 {[%clk 00:20:23]} {[%emt
00:00:04]} 7. Nf3 {[%clk 00:20:26]} {[%emt 00:00:02]} Nc6 {[%clk 00:20:21]}
{[%emt 00:00:08]} 8. O-O {[%clk 00:20:26]} {[%emt 00:00:04]} b5 {[%clk
00:20:25]} {[%emt 00:00:02]} 9. e5 {[%clk 00:20:12]} {[%emt 00:00:20]} dxe5
{[%clk 00:20:28]} {[%emt 00:00:02]} 10. Nxe5 {[%clk 00:20:12]} {[%emt
00:00:04]} Nxe5 {[%clk 00:18:47]} {[%emt 00:01:45]} 11. Bxa8 {[%clk 00:20:12]}
{[%emt 00:00:05]} Qd4+ {[%clk 00:18:44]} {[%emt 00:00:08]} 12. Kg2 {[%clk
00:19:29]} {[%emt 00:00:48]} Ned7 {[%clk 00:18:10]} {[%emt 00:00:40]} 13. Re1
{[%clk 00:18:34]} {[%emt 00:00:58]} O-O {[%clk 00:18:05]} {[%emt 00:00:12]} 14.
Be3 {[%clk 00:18:35]} {[%emt 00:00:03]} Qd6 {[%clk 00:18:00]} {[%emt 00:00:11]}
15. d4 {[%clk 00:16:48]} {[%emt 00:01:51]} Nd5 {[%clk 00:17:45]} {[%emt
00:00:19]} 16. Nxd5 {[%clk 00:15:10]} {[%emt 00:01:44]} exd5 {[%clk 00:17:49]}
{[%emt 00:00:01]} 17. dxc5 {[%clk 00:15:13]} {[%emt 00:00:02]} Nxc5 {[%clk
00:17:45]} {[%emt 00:00:09]} 18. Qxd5 {[%clk 00:15:11]} {[%emt 00:00:07]} Qxd5+
{[%clk 00:17:06]} {[%emt 00:00:44]} 19. Bxd5 {[%clk 00:15:13]} {[%emt
00:00:02]} Rd8 {[%clk 00:17:11]} {[%emt 00:00:01]} 20. Rad1 {[%clk 00:15:08]}
{[%emt 00:00:09]} Rxd5 {[%clk 00:17:10]} {[%emt 00:00:07]} 21. Rxd5 {[%clk
00:15:08]} {[%emt 00:00:05]} Bb7 {[%clk 00:17:14]} {[%emt 00:00:02]} 22. Red1
{[%clk 00:14:22]} {[%emt 00:00:49]} g6 {[%clk 00:16:46]} {[%emt 00:00:34]} 23.
Kg1 {[%clk 00:14:09]} {[%emt 00:00:17]} Bxd5 {[%clk 00:16:43]} {[%emt
00:00:08]} 24. Rxd5 {[%clk 00:14:13]} {[%emt 00:00:02]} Ne6 {[%clk 00:16:30]}
{[%emt 00:00:18]} 25. g4 {[%clk 00:13:52]} {[%emt 00:00:25]} Bf6 {[%clk
00:16:31]} {[%emt 00:00:05]} 26. c3 {[%clk 00:13:39]} {[%emt 00:00:18]} Kg7
{[%clk 00:16:12]} {[%emt 00:00:24]} 27. Kg2 {[%clk 00:12:51]} {[%emt 00:00:53]}
h6 {[%clk 00:15:18]} {[%emt 00:00:59]} 28. Kf3 {[%clk 00:12:33]} {[%emt
00:00:23]} Be7 {[%clk 00:14:58]} {[%emt 00:00:25]} 29. f5 {[%clk 00:10:48]}
{[%emt 00:01:50]} gxf5 {[%clk 00:14:49]} {[%emt 00:00:14]} 30. gxf5 {[%clk
00:10:48]} {[%emt 00:00:05]} Nd8 {[%clk 00:14:40]} {[%emt 00:00:15]} 31. Rd7
{[%clk 00:10:28]} {[%emt 00:00:25]} Bf6 {[%clk 00:14:29]} {[%emt 00:00:16]} 32.
Bd4 {[%clk 00:10:23]} {[%emt 00:00:09]} Bxd4 {[%clk 00:14:33]} {[%emt
00:00:02]} 33. cxd4 {[%clk 00:09:49]} {[%emt 00:00:39]} Nc6 {[%clk 00:14:32]}
{[%emt 00:00:06]} 34. Rd6 {[%clk 00:09:32]} {[%emt 00:00:21]} Nb4 {[%clk
00:14:36]} {[%emt 00:00:02]} 35. a3 {[%clk 00:09:35]} {[%emt 00:00:02]} Nd3
{[%clk 00:14:40]} {[%emt 00:00:01]} 36. b4 {[%clk 00:09:35]} {[%emt 00:00:06]}
Ne1+ {[%clk 00:14:29]} {[%emt 00:00:16]} 37. Ke4 {[%clk 00:09:31]} {[%emt
00:00:07]} Nc2 {[%clk 00:13:56]} {[%emt 00:00:39]} 38. Rxa6 {[%clk 00:09:32]}
{[%emt 00:00:04]} Na1 {[%clk 00:13:59]} {[%emt 00:00:02]} 39. Rc6 {[%clk
00:08:46]} {[%emt 00:00:51]} Nb3 {[%clk 00:13:57]} {[%emt 00:00:07]} 1-0



[ePGN "0.1;DGT LiveChess/2.2.6"]

[Event "MČR juniorů a juniorek v rapid šachu 2024"]
[Site "Hotel Fit Fun, Harrachov, Czech Republic"]
[Date "2024.09.22"]
[Round "8.17"]
[White "Zadrapova Amalie"]
[Black "Sulcova Tereza Radmila"]
[Result "0-1"]
[TimeControl "20+5"]
[WhiteFideId "23710276"]
[BlackFideId "395196"]
[WhiteElo "1891"]
[BlackElo "1800"]

1. e4 {[%clk 00:20:09]} {[%emt 00:00:23]} e6 {[%clk 00:20:09]} {[%emt
00:00:01]} 2. d4 {[%clk 00:20:12]} {[%emt 00:00:02]} d5 {[%clk 00:20:14]} 3.
Nd2 {[%clk 00:20:13]} {[%emt 00:00:04]} Nf6 {[%clk 00:20:17]} {[%emt 00:00:01]}
4. e5 {[%clk 00:20:14]} {[%emt 00:00:04]} Nfd7 {[%clk 00:20:21]} 5. Bd3 {[%clk
00:20:10]} {[%emt 00:00:08]} c5 {[%clk 00:20:25]} {[%emt 00:00:02]} 6. c3
{[%clk 00:20:11]} {[%emt 00:00:04]} Nc6 {[%clk 00:20:28]} {[%emt 00:00:02]} 7.
Ne2 {[%clk 00:20:11]} {[%emt 00:00:05]} Qb6 {[%clk 00:20:31]} {[%emt 00:00:02]}
8. Nf3 {[%clk 00:20:13]} {[%emt 00:00:03]} Be7 {[%clk 00:20:30]} {[%emt
00:00:06]} 9. O-O {[%clk 00:19:55]} {[%emt 00:00:23]} O-O {[%clk 00:20:33]}
{[%emt 00:00:03]} 10. Bb1 {[%clk 00:17:51]} {[%emt 00:02:09]} Re8 {[%clk
00:19:55]} {[%emt 00:00:42]} 11. Qc2 {[%clk 00:16:55]} {[%emt 00:01:02]} Nf8
{[%clk 00:19:58]} {[%emt 00:00:02]} 12. Bg5 {[%clk 00:13:19]} {[%emt 00:03:41]}
Bd7 {[%clk 00:18:33]} {[%emt 00:01:30]} 13. Bxe7 {[%clk 00:12:52]} {[%emt
00:00:31]} Nxe7 {[%clk 00:18:36]} {[%emt 00:00:02]} 14. Ng3 {[%clk 00:12:04]}
{[%emt 00:00:53]} Rac8 {[%clk 00:18:18]} {[%emt 00:00:22]} 15. dxc5 {[%clk
00:11:23]} {[%emt 00:00:47]} Qxc5 {[%clk 00:17:53]} {[%emt 00:00:30]} 16. Ng5
{[%clk 00:10:11]} {[%emt 00:01:17]} Neg6 {[%clk 00:17:45]} {[%emt 00:00:12]} 17.
Kh1 {[%clk 00:07:52]} {[%emt 00:02:26]} d4 {[%clk 00:14:18]} {[%emt 00:03:32]}
18. N5e4 {[%clk 00:05:19]} {[%emt 00:02:37]} Qxe5 {[%clk 00:14:12]} {[%emt
00:00:11]} 19. cxd4 {[%clk 00:04:37]} {[%emt 00:00:47]} Rxc2 {[%clk 00:11:49]}
{[%emt 00:02:29]} 20. dxe5 {[%clk 00:04:40]} {[%emt 00:00:01]} Rxb2 {[%clk
00:11:52]} {[%emt 00:00:03]} 21. Nd6 {[%clk 00:04:12]} {[%emt 00:00:32]} Re7
{[%clk 00:11:47]} {[%emt 00:00:10]} 22. f4 {[%clk 00:03:46]} {[%emt 00:00:32]}
Bc6 {[%clk 00:11:47]} {[%emt 00:00:04]} 23. Be4 {[%clk 00:03:43]} {[%emt
00:00:07]} Nh4 {[%clk 00:10:28]} {[%emt 00:01:24]} 24. Rg1 {[%clk 00:02:14]}
{[%emt 00:01:34]} Nfg6 {[%clk 00:10:07]} {[%emt 00:00:25]} 25. Rad1 {[%clk
00:01:46]} {[%emt 00:00:33]} Rxa2 {[%clk 00:08:47]} {[%emt 00:01:25]} 26. Bxc6
{[%clk 00:01:22]} {[%emt 00:00:30]} bxc6 {[%clk 00:08:50]} {[%emt 00:00:01]} 27.
Nh5 {[%clk 00:00:43]} {[%emt 00:00:43]} a5 {[%clk 00:06:51]} {[%emt 00:02:04]}
28. Nc4 {[%clk 00:00:24]} {[%emt 00:00:24]} Re8 {[%clk 00:05:59]} {[%emt
00:00:56]} 29. Nd6 {[%clk 00:00:13]} {[%emt 00:00:16]} Ra8 {[%clk 00:05:46]}
{[%emt 00:00:18]} 30. Rc1 {[%clk 00:00:15]} {[%emt 00:00:03]} Ra6 {[%clk
00:05:43]} {[%emt 00:00:08]} 31. Nb7 {[%clk 00:00:11]} {[%emt 00:00:09]} a4
{[%clk 00:05:24]} {[%emt 00:00:24]} 32. Nc5 {[%clk 00:00:14]} {[%emt 00:00:01]}
Ra8 {[%clk 00:05:10]} {[%emt 00:00:19]} 33. Rb1 {[%clk 00:00:10]} {[%emt
00:00:10]} a3 {[%clk 00:04:03]} {[%emt 00:01:12]} 34. h3 {[%clk 00:00:09]}
{[%emt 00:00:06]} Rc2 {[%clk 00:03:58]} {[%emt 00:00:10]} 35. Nb7 {[%clk
00:00:10]} {[%emt 00:00:04]} a2 {[%clk 00:03:55]} {[%emt 00:00:09]} 36. Ra1
{[%clk 00:00:14]} Rb8 {[%clk 00:03:33]} {[%emt 00:00:27]} 37. Nd6 {[%clk
00:00:18]} {[%emt 00:00:02]} Rbb2 {[%clk 00:03:34]} {[%emt 00:00:03]} 38. Ne4
{[%clk 00:00:06]} {[%emt 00:00:18]} Nxg2 {[%clk 00:03:11]} {[%emt 00:00:27]} 39.
Neg3 {[%clk 00:00:07]} {[%emt 00:00:04]} N2xf4 {[%clk 00:03:07]} {[%emt
00:00:09]} 40. Nf1 {[%clk 00:00:10]} {[%emt 00:00:02]} Nxh5 {[%clk 00:03:02]}
{[%emt 00:00:10]} 0-1



[ePGN "0.1;DGT LiveChess/2.2.6"]